fUSD/lending_fUSD_20240204
["ID","MTS","AMOUNT","RATE_DAILY","PERIOD"]
[313261783,1707053438523,-470.72439711,0.00022899,2]
[313261784,1707053438682,-500.0,0.00022899,2]
[313261785,1707053438697,-500.0,0.00022899,2]
[313261786,1707053438708,-500.0,0.00022899,2]
[313261787,1707053438718,-403.95410656,0.00022899,2]
[313261788,1707053438728,-500.0,0.00022899,2]
[313261789,1707053438739,-351.36401613,0.00022899,2]
[313261791,1707053440484,-148.63598387,0.00022899,2]
[313261792,1707053440494,-500.0,0.00022899,2]
[313261793,1707053440503,-0.57008923,0.000229,3]
[313261794,1707053440535,-404.05023208,0.000229,3]
[313261795,1707053440594,-538.94650053,0.000229,3]
[313261809,1707053443023,-297.14981284,0.000228,2]
[313261810,1707053443034,-299.25018716,0.000229,3]
[313261815,1707053443231,1524.8687588,0.00022344,2]
[313261817,1707053445999,-155.0,0.00022898,2]
[313261818,1707053446008,-155.0,0.00022898,2]
[313261819,1707053446019,-11438.4256146,0.000229,3]
[313261822,1707053462580,323.28,0.00020547,2]
[313261823,1707053483079,179.27454278,0.000219,2]
[313261824,1707053507690,3198.37181468,0.00021885,2]
[313261825,1707053531234,176.92,0.000219,2]
[313261826,1707053532503,350.71886258,0.00022448,2]
[313261827,1707053566545,300.0,0.00022433,2]
[313261835,1707053597329,158.4,0.00022193,2]
[313261836,1707053612685,2000.0,0.0002206,2]
[313261837,1707053641775,168.82285568,0.000228,6]
[313261852,1707053674285,1011.38797046,0.00022344,2]
[313261859,1707053717204,431.84,0.00022047,2]
[313261863,1707053725944,3048.13565396,0.00022897,5]
[313261869,1707053732340,1115.15818308,0.00022439,2]
[313261883,1707053774707,500.0,0.00021923,2]
[313261885,1707053792386,150.28,0.00021934,2]
[313261897,1707053810292,1000.0,0.00021925,2]
[313261904,1707053885969,334.27,0.00020022,2]
[313261905,1707053886213,334.27,0.00022286,2]
[313261909,1707053925001,250.0,0.00021924,2]
[313261911,1707053946645,794.54,0.00021924,2]
[313261914,1707053977052,750.0,0.00021924,2]
[313261915,1707054031111,158.4,0.00022098,2]
[313261916,1707054060073,2000.0,0.00021923,2]
[313261917,1707054093820,207.0,0.0002207,2]
[313261919,1707054160068,353.29,0.000219,2]
[313261920,1707054193336,216.52,0.00021909,2]
[313261923,1707054229807,207.18,0.00021922,2]
[313261924,1707054243443,200.0,0.00021918,2]
[313261925,1707054302186,500.0,0.00021908,2]
[313261926,1707054323725,-393.15011915,0.000226,2]
[313261927,1707054323747,-150.0,0.0002261,2]
[313261928,1707054323769,-300.0,0.00022667,2]
[313261929,1707054323795,-150.0,0.00022667,2]
[313261930,1707054323817,-20.49951979,0.00022668,2]
[313261931,1707054324745,326.9,0.00019984,2]
[313261932,1707054325002,326.9,0.00022248,2]
[313261935,1707054401781,727.16,0.00021903,2]
[313261938,1707054531246,250.0,0.000219,2]
[313261939,1707054532523,250.0,0.00022174,2]
[313261945,1707054631960,-150.0,0.00022667,2]
[313261946,1707054631970,-729.64,0.00022668,2]
[313261947,1707054631979,-714.69,0.00022668,2]
[313261948,1707054631988,-723.83,0.00022668,2]
[313261949,1707054631998,-711.57,0.00022668,2]
[313261950,1707054632009,-730.89,0.00022668,2]
[313261951,1707054632019,-718.22,0.00022668,2]
[313261952,1707054632030,-521.16,0.00022668,2]
[313261953,1707054632260,-204.57,0.00022668,2]
[313261954,1707054632269,-714.79,0.00022668,2]
[313261955,1707054632279,-475.23635189,0.00022668,2]
[313261957,1707054632288,-22524.55016114,0.00022668,2]
[313261959,1707054632298,-500.0,0.00022698,2]
[313261961,1707054632308,-2291.9306,0.00022699,2]
[313261963,1707054632317,-9720.85,0.000227,2]
[313261965,1707054632327,-1814.1657,0.000227,2]
[313261967,1707054632337,-1000.0,0.000227,2]
[313261969,1707054632346,-94663.93805114,0.000227,2]
[313261971,1707054632357,-818.26057678,0.000227,2]
[313261974,1707054632369,-485.80288671,0.000227,2]
[313261976,1707054632380,-15904.67228134,0.000227,2]
[313261978,1707054632391,-3882.14213159,0.000227,2]
[313261980,1707054632403,-595.82036143,0.000227,2]
[313262008,1707054638086,-976.559396,0.000227,2]
[313262009,1707054638099,-5847.22681501,0.000227,2]
[313262010,1707054638110,-384.3197593,0.00022797,2]
[313262011,1707054638120,-730.83,0.00022797,2]
[313262012,1707054638131,-711.04,0.00022798,2]
[313262013,1707054638141,-2168.53118069,0.00022799,2]
[313262014,1707054638206,-770.79861931,0.00022799,2]
[313262015,1707054638215,-4192.69800395,0.00022799,2]
[313262016,1707054638229,-11337.46409605,0.00022799,2]
[313262017,1707054638238,-1000.0,0.00022799,2]
[313262018,1707054638248,-354.5813,0.00022799,2]
[313262019,1707054638263,-3409.89,0.00022799,2]
[313262020,1707054638274,-1860.52,0.00022799,2]
[313262021,1707054638285,-1000.0,0.00022799,2]
[313262022,1707054638294,-999.99,0.00022799,2]
[313262023,1707054638304,-499.99,0.00022799,2]
[313262024,1707054638313,-523.8010228,0.00022799,2]
[313262025,1707054638324,-812.855,0.000228,2]
[313262026,1707054638334,-168.32412907,0.000228,2]
[313262027,1707054638344,-3.40845208,0.000228,2]
[313262028,1707054638360,-563.84195633,0.000228,2]
[313262029,1707054638377,-15964.93565419,0.000228,2]
[313262030,1707054638387,-507557.25970002,0.000228,2]
[313262031,1707054638396,-198.09987522,0.000228,2]
[313262032,1707054638406,-200.71865164,0.000228,2]
[313262033,1707054638415,-196.62762018,0.000228,2]
[313262034,1707054638425,-500.0,0.00022815,2]
[313262035,1707054638434,-800.0,0.00022815,2]
[313262036,1707054638444,-500.0,0.00022816,2]
[313262037,1707054638455,-500.0,0.00022816,2]
[313262038,1707054638464,-500.0,0.00022816,2]
[313262039,1707054638474,-500.0,0.00022816,2]
[313262040,1707054638485,-200.0,0.00022816,2]
[313262041,1707054638494,-200.0,0.00022816,2]
[313262042,1707054638504,-800.0,0.00022816,2]
[313262043,1707054638514,-198.09987521,0.0002285,2]
[313262044,1707054638523,-200.71865162,0.0002285,2]
[313262045,1707054638533,-101312.95059931,0.0002289,2]
[313262046,1707054638544,-7826.15905619,0.00022897,2]
[313262047,1707054638554,-435.31932191,0.00022897,2]
[313262048,1707054638563,-375.03299324,0.00022897,2]
[313262049,1707054638573,-400.0,0.00022897,2]
[313262050,1707054638582,-188.97205682,0.00022898,2]
[313262051,1707054638593,-308.81588644,0.00022898,2]
[313262052,1707054638607,-385.63604412,0.00022898,2]
[313262053,1707054638617,-3020.30323365,0.00022898,2]
[313262054,1707054638627,-205669.37704559,0.00022898,3]
[313262055,1707054638637,-215.41213944,0.00022899,2]
[313262056,1707054638648,-558992.68608466,0.00022899,2]
[313262057,1707054638658,-533.0,0.00022899,2]
[313262058,1707054638667,-2481205.5834995,0.000229,2]
[313262060,1707054638680,-16508.55296554,0.000229,2]
[313262062,1707054638692,-28713.3169926,0.000229,2]
[313262067,1707054640503,-359.60538072,0.000229,2]
[313262068,1707054640516,-1062.73661376,0.000229,2]
[313262069,1707054640528,-24663.22656569,0.000229,2]
[313262070,1707054640540,-2421.31069343,0.000229,2]
[313262071,1707054640552,-589.55763454,0.000229,2]
[313262072,1707054640568,-833.44942547,0.000229,2]
[313262073,1707054640581,-298.33106,0.000229,2]
[313262074,1707054640611,-821.32309621,0.000229,2]
[313262075,1707054640622,-3437.9492106,0.000229,2]
[313262076,1707054640634,-338.64724169,0.000229,2]
[313262077,1707054640666,-264.78441409,0.000229,2]
[313262078,1707054640680,-490.38384414,0.000229,2]
[313262079,1707054640692,-455.20087013,0.000229,2]
[313262080,1707054641297,-144460.50646118,0.000229,2]
[313262081,1707054641311,-1934.13325,0.000229,2]
[313262082,1707054641324,-500.54994624,0.000229,2]
[313262083,1707054641337,-1563.90252518,0.000229,2]
[313262084,1707054641371,-306.20839333,0.000229,2]
[313262099,1707054643183,-500.0,0.000229,2]
[313262100,1707054643195,-17268.2145128,0.000229,2]
[313262101,1707054643206,-456.6805457,0.000229,2]
[313262102,1707054643217,-849.58483316,0.000229,2]
[313262103,1707054643229,-802.0,0.000229,2]
[313262104,1707054643244,-549.10123274,0.000229,2]
[313262105,1707054643256,-724.41329783,0.000229,2]
[313262108,1707054651256,-155.0,0.00022899,2]
[313262109,1707054651266,-1230.82306312,0.000229,2]
[313262110,1707054651277,-2306.00000001,0.000229,2]
[313262111,1707054651341,-135622.28377181,0.000229,2]
[313262112,1707054651353,-7602.4124577,0.000229,2]
[313262113,1707054651365,-21755.95714285,0.000229,2]
[313262114,1707054651376,-6899.25010599,0.000229,2]
[313262115,1707054651387,-13277.38991971,0.000229,2]
[313262118,1707054713910,3198.37181468,0.0002198,2]
[313262119,1707054722969,278.10084856,0.00022,2]
[313262120,1707054780791,317.65,0.0002028,2]
[313262121,1707054789809,532.1503415,0.000229,6]
[313262122,1707054814325,841.24,0.00022126,2]
[313262123,1707054836245,381.04,0.0002204,2]
[313262124,1707054841051,679.7,0.0002204,2]
[313262125,1707054849155,622.41313317,0.0002,2]
[313262126,1707054884946,250.0,0.00021978,2]
[313262127,1707054935019,425.7202732,0.000229,6]
[313262128,1707054976497,2000.0,0.0002196,2]
[313262129,1707054982367,170.0,0.00025,33]
[313262130,1707055011718,178.0,0.00025,32]
[313262131,1707055047626,177.0,0.000235,5]
[313262132,1707055048637,293.89,0.00022011,2]
[313262133,1707055080313,340.57621856,0.000229,6]
[313262134,1707055084841,197.53,0.0002199,2]
[313262135,1707055085233,214.57,0.00022155,2]
[313262136,1707055138375,1085.22,0.0002205,2]
[313262137,1707055174226,207.0,0.00022231,2]
[313262139,1707055190203,2887.76,0.00022012,2]
[313262140,1707055207035,160.0,0.00022004,2]
[313262142,1707055225756,272.46097484,0.000229,6]
[313262143,1707055268933,1259.48,0.00021987,2]
[313262144,1707055272203,500.0,0.00021987,2]
[313262145,1707055320425,347.51,0.00020072,2]
[313262146,1707055320646,347.51,0.00022336,2]
[313262147,1707055325431,848.83921823,0.00021987,2]
[313262148,1707055325970,3199.69692174,0.00021788,2]
[313262149,1707055326578,151.53,0.0002199,2]
[313262150,1707055326919,403.19810569,0.00021327,2]
[313262151,1707055327523,534.63116618,0.00021987,2]
[313262152,1707055328220,808.18403302,0.00021987,2]
[313262153,1707055331673,370.64138861,0.000225,2]
[313262154,1707055343975,3197.04670762,0.00021788,2]
[313262155,1707055345500,227.15782808,0.00021987,2]
[313262156,1707055346203,808.98550887,0.00021987,2]
[313262158,1707055358718,250.0,0.0002201,2]
[313262159,1707055359211,161.94812689,0.00020336,2]
[313262160,1707055359426,849.49765863,0.00021788,2]
[313262161,1707055359982,307.45473556,0.00021692,2]
[313262162,1707055362921,402.74084734,0.00021134,2]
[313262163,1707055366207,808.27654529,0.00021788,2]
[313262164,1707055371317,217.96877988,0.000229,6]
[313262165,1707055379412,849.49765863,0.00021788,2]
[313262166,1707055380924,403.19810569,0.00021134,2]
[313262168,1707055386221,807.52213624,0.00021788,2]
[313262169,1707055387668,627.85,0.00022044,2]
[313262170,1707055388682,9332.20980392,0.00021679,2]
[313262171,1707055392651,168.93,0.00022044,2]
[313262172,1707055392896,261.7948,0.00022444,2]
[313262174,1707055397409,506.87419611,0.00021788,2]
[313262175,1707055490422,2000.0,0.00021988,2]
[313262177,1707055502678,5662.1267808,0.00021679,2]
[313262178,1707055506930,2328.73849707,0.00021788,2]
[313262179,1707055516774,174.37502388,0.00022898,6]
[313262180,1707055521799,174.37502387,0.00023177,7]
[313262181,1707055526789,174.37502387,0.00023457,7]
[313262182,1707055545491,214.57,0.00022129,2]
[313262183,1707055587658,254.4,0.00021941,2]
[313262187,1707055643114,2185.31764007,0.00021722,2]
[313262188,1707055646066,729.8522769,0.00021,2]
[313262189,1707055647572,948.45035289,0.00021941,2]
[313262190,1707055653616,1029.64734929,0.00021941,2]
[313262191,1707055654509,884.38873617,0.00021941,2]
[313262192,1707055659186,500.0,0.00021941,2]
[313262193,1707055660943,403.19810569,0.00021283,2]
[313262194,1707055680953,403.12005535,0.00021283,2]
[313262195,1707055681175,500.0,0.00021941,2]
[313262201,1707055733972,256.88607131,0.0002198,2]
[313262202,1707055759300,1991.0,0.00022444,2]
[313262204,1707055776682,250.0,0.00021967,2]
[313262205,1707055784483,1537.1248,0.00022497,2]
[313262206,1707055818271,176.35630077,0.0002198,2]
[313262207,1707055828762,1000.0,0.00021976,2]
[313262219,1707055832179,-493.58057102,0.0002252,2]
[313262220,1707055832189,-155.0,0.0002252,2]
[313262221,1707055832198,-150.0,0.00022597,2]
[313262222,1707055832207,-8.22542898,0.00022598,2]
[313262223,1707055832219,-142.78649656,0.00022598,2]
[313262224,1707055832228,-757.21350344,0.00022598,2]
[313262225,1707055832239,-8704.52690776,0.00022598,2]
[313262226,1707055832251,-7746.95875996,0.00022598,2]
[313262227,1707055832264,-418.90217464,0.00022598,2]
[313262228,1707055832276,-12792.4382685,0.00022598,2]
[313262229,1707055832294,-3426.65017363,0.00022598,2]
[313262230,1707055832306,-1109.28653054,0.00022598,2]
[313262231,1707055832317,-1456.00192747,0.00022598,2]
[313262232,1707055832329,-3844.52115975,0.00022598,2]
[313262233,1707055832342,-713.07366266,0.00022598,2]
[313262234,1707055832359,-289.10078218,0.00022519,2]
[313262235,1707055832370,-661.43054169,0.00022519,2]
[313262236,1707055832385,-94.88068513,0.00022519,2]
[313262237,1707055832395,-4380.18413754,0.00022598,2]
[313262238,1707055832406,-1207.4376444,0.00022696,2]
[313262239,1707055832417,-374.0650919,0.00022697,2]
[313262240,1707055832427,-277.17032457,0.00022698,2]
[313262241,1707055832439,-8502.4858602,0.00022698,2]
[313262242,1707055832461,-263.41331257,0.00022698,2]
[313262244,1707055832474,-643.38334908,0.00022698,2]
[313262247,1707055832485,-280551.2782053,0.00022698,2]
[313262249,1707055832495,-398.5684,0.000227,2]
[313262251,1707055832504,-714.8,0.00022798,2]
[313262252,1707055832513,-705.0,0.00022875,2]
[313262255,1707055832523,-342.383,0.00022875,2]
[313262257,1707055832533,-698.624,0.00022875,2]
[313262259,1707055832543,-387.063,0.00022875,2]
[313262261,1707055832553,-476.791,0.00022875,2]
[313262263,1707055832562,-320.0,0.00022875,2]
[313262265,1707055832572,-1119.63,0.00022875,2]
[313262267,1707055832581,-342.0,0.00022875,2]
[313262269,1707055832591,-5000.0,0.0002288,2]
[313262271,1707055832600,-155.0,0.00022897,2]
[313262273,1707055832610,-2289.8,0.00022898,2]
[313262275,1707055832619,-659.2969924,0.00022898,2]
[313262277,1707055832629,-494.40975203,0.00022898,2]
[313262279,1707055832642,-151.01192554,0.00022898,2]
[313262281,1707055832652,-1479.98247934,0.00022898,2]
[313262283,1707055832662,-196.62762018,0.00022898,2]
[313262285,1707055832672,-15154.50389079,0.00022899,2]
[313262287,1707055832682,-659.2969924,0.00022899,2]
[313262289,1707055832692,-494.40975203,0.00022899,2]
[313262291,1707055832701,-1479.98247933,0.00022899,2]
[313262293,1707055832711,-710.1,0.000229,2]
[313262295,1707055832721,-11552.31093617,0.000229,2]
[313262298,1707055832742,-8914.15624746,0.000229,2]
[313262300,1707055832754,-319.28,0.000229,2]
[313262302,1707055832766,-354.489135,0.000229,2]
[313262313,1707055838191,-590.18551452,0.00022519,2]
[313262314,1707055838203,-588.57466144,0.00022519,2]
[313262315,1707055838213,-284.2416514,0.00022696,2]
[313262316,1707055838222,-214.82587439,0.000228,2]
[313262317,1707055838231,-618.9788965,0.000229,2]
[313262318,1707055838244,-994.86295319,0.000229,2]
[313262319,1707055838355,-507.52973018,0.000229,2]
[313262320,1707055838462,-3475.72798713,0.000229,2]
[313262328,1707055840830,-544.57626637,0.00022799,2]
[313262329,1707055841004,-214.82587439,0.00022898,2]
[313262330,1707055841014,-498.83829364,0.000229,2]
[313262331,1707055841518,-456.95782052,0.000229,2]
[313262332,1707055841573,-2877.34765794,0.000229,2]
[313262344,1707055843175,-731.97994428,0.00022799,2]
[313262346,1707055843184,-318.89878966,0.000229,2]
[313262350,1707055843234,-14125.27219607,0.000229,2]
[313262351,1707055843289,-453.44659482,0.000229,2]
[313262352,1707055843328,-80995.40740341,0.000229,2]
[313262353,1707055843347,-527.67843229,0.000229,2]
[313262355,1707055843536,-1906.91344282,0.000229,2]
[313262356,1707055843548,-1150.0,0.000229,2]
[313262357,1707055843564,-480.03533669,0.00022899,2]
[313262358,1707055846093,332.27,0.00020619,2]
[313262359,1707055846182,-574.41,0.00022537,2]
[313262360,1707055846192,-13.54523433,0.00022899,2]
[313262361,1707055846203,-12.04476567,0.00022899,2]
[313262362,1707055846239,-908.57762883,0.00022899,2]
[313262363,1707055846248,-15540.27664764,0.000229,2]
[313262364,1707055846293,-332.27,0.00022883,2]
[313262365,1707055846303,-153189.30002655,0.000229,2]
[313262366,1707055846349,-532.65,0.00022899,2]
[313262368,1707055966260,189.81,0.0002231,2]
[313262369,1707055990366,150.0,0.0002198,2]
[313262372,1707056212738,5456.05,0.00022167,2]
[313262373,1707056253822,207.0,0.00022379,2]
[313262374,1707056285310,521.34,0.00022215,2]
[313262375,1707056299833,316.59,0.00020297,2]
[313262376,1707056304185,200.0,0.0002218,2]
[313262377,1707056312463,527.90566707,0.00021466,2]
[313262379,1707056321332,1500.0,0.000225,2]
[313262380,1707056321727,1500.0,0.00022,2]
[313262381,1707056322126,2573.270264,0.000215,2]
[313262382,1707056355618,5202.33214498,0.000215,2]
[313262391,1707056544238,2482.12405516,0.00022211,2]
[313262392,1707056564140,466.060242,0.00022211,2]
[313262393,1707056599707,10909.35,0.00022082,2]
[313262394,1707056622701,1566.736676,0.000225,2]
[313262400,1707056753733,175.89,0.00017582,2]
[313262401,1707056761796,470.01,0.00021978,2]
[313262405,1707056807881,840.0,0.00021978,2]
[313262406,1707056853350,328.42,0.00021978,2]
[313262407,1707056892074,204.76,0.00022013,2]
[313262408,1707056902195,2000.0,0.00022013,2]
[313262409,1707056903073,316.55,0.00020095,2]
[313262410,1707056903282,316.55,0.00022359,2]
[313262411,1707056935942,151.84,0.00021983,2]
[313262412,1707056964023,4268.16,0.00021967,2]
[313262429,1707057031350,-426.73,0.00022527,2]
[313262430,1707057031362,-66.85057102,0.00022527,2]
[313262431,1707057031372,-150.0,0.00022528,2]
[313262432,1707057031381,-913.4543,0.00022598,2]
[313262433,1707057031390,-151.01192552,0.000227,2]
[313262434,1707057031400,-3652.33027644,0.00022733,2]
[313262435,1707057031409,-151.01192552,0.00022733,2]
[313262436,1707057031418,-151.01192552,0.00022766,2]
[313262437,1707057031427,-150.0,0.00022798,2]
[313262438,1707057031436,-150.0,0.00022798,2]
[313262439,1707057031446,-4970.52910724,0.00022799,2]
[313262440,1707057031462,-277.93905889,0.00022799,2]
[313262441,1707057031475,-1486.43739774,0.00022799,2]
[313262442,1707057031490,-300.0,0.00022799,2]
[313262464,1707057037533,-6912.79478226,0.00022799,2]
[313262465,1707057037643,-1065.55,0.00022799,2]
[313262474,1707057041034,-20786.33365387,0.00022799,2]
[313262477,1707057041045,-151.01192552,0.00022799,2]
[313262478,1707057041055,-157.66,0.00022831,2]
[313262480,1707057041064,-151.01192552,0.00022832,2]
[313262482,1707057041073,-151.01192552,0.00022865,2]
[313262484,1707057041082,-2248.7742959,0.0002288,2]
[313262486,1707057041092,-5980.23063711,0.0002288,2]
[313262489,1707057041104,-611.3161442,0.0002288,2]
[313262491,1707057041120,-7335.46017462,0.0002288,2]
[313262492,1707057041129,-2985.9214,0.0002288,2]
[313262493,1707057041140,-242.25045307,0.00022898,2]
[313262494,1707057041149,-1177.76554606,0.00022898,2]
[313262495,1707057041158,-1858.12367916,0.00022898,2]
[313262496,1707057041168,-331.6322753,0.00022898,2]
[313262497,1707057041177,-155.0,0.00022898,2]
[313262498,1707057041187,-531.83644934,0.00022898,2]
[313262499,1707057041197,-155.46155295,0.00022898,2]
[313262500,1707057041206,-151.01192552,0.00022898,2]
[313262501,1707057041216,-493.32749311,0.00022898,2]
[313262502,1707057041225,-205.36682409,0.00022898,2]
[313262503,1707057041236,-219.76566414,0.00022898,2]
[313262504,1707057041245,-411.36312889,0.00022898,2]
[313262505,1707057041255,-508.053809,0.00022899,2]
[313262506,1707057041265,-1595.66559073,0.00022899,2]
[313262523,1707057042547,-3636.54635064,0.00022898,2]
[313262524,1707057042557,-7926.72156473,0.00022899,2]
[313262525,1707057042570,-387.74930468,0.00022899,2]
[313262526,1707057042603,-2457.09624937,0.00022899,2]
[313262527,1707057042615,-1771.22584061,0.00022899,2]
[313262528,1707057042630,-1321.86465,0.00022899,2]
[313262529,1707057042641,-455.39861255,0.00022899,2]
[313262530,1707057042652,-1244.146725,0.00022899,2]
[313262531,1707057042663,-4236.87458681,0.00022899,2]
[313262532,1707057042674,-2170.90794213,0.00022899,2]
[313262547,1707057045486,-1055.40624288,0.00022899,2]
[313262548,1707057045543,-5626.07898291,0.00022899,2]
[313262549,1707057045552,-5948.92101648,0.00022899,2]
[313262551,1707057077128,-279.06331239,0.00041684,120]
[313262552,1707057077153,-1633.24786323,0.00041684,120]
[313262553,1707057077176,-152.58121554,0.00041684,120]
[313262554,1707057077198,-270.76670175,0.00041684,120]
[313262555,1707057077223,-403.45721989,0.00041684,90]
[313262556,1707057077246,-223.4085189,0.00041684,30]
[313262557,1707057077269,-151.09649739,0.00041684,120]
[313262558,1707057077292,-151.89334976,0.00041684,120]
[313262559,1707057077314,-214.07401012,0.00041684,120]
[313262560,1707057077337,-192.22613689,0.00041684,120]
[313262561,1707057077359,-227.55097666,0.00041684,120]
[313262562,1707057077382,-5427.63035058,0.00041684,120]
[313262563,1707057077404,-20032.03622739,0.00041684,120]
[313262564,1707057077427,-494.06987051,0.00041684,120]
[313262565,1707057077449,-237.81965408,0.00041684,30]
[313262566,1707057077475,-420000.0,0.00041684,30]
[313262567,1707057077498,-186.618352,0.00041684,60]
[313262568,1707057077522,-236000.0,0.00041684,120]
[313262569,1707057077545,-25000.0,0.00041684,30]
[313262570,1707057077567,-317202.09,0.00041684,30]
[313262571,1707057077590,-211.1136824,0.00041684,30]
[313262572,1707057077613,-9003.42087424,0.00041684,120]
[313262573,1707057077636,-1000.0,0.00041684,30]
[313262574,1707057077658,-1000.0,0.00041684,30]
[313262575,1707057077680,-1000.0,0.00041684,30]
[313262576,1707057077702,-1000.0,0.00041684,30]
[313262577,1707057077726,-1000.0,0.00041684,30]
[313262578,1707057077749,-1000.0,0.00041684,30]
[313262579,1707057077771,-1000.0,0.00041684,30]
[313262580,1707057077793,-1000.0,0.00041684,30]
[313262581,1707057077817,-1000.0,0.00041684,30]
[313262582,1707057077840,-301.47629969,0.00041684,30]
[313262583,1707057077863,-753.0730306,0.00041684,120]
[313262584,1707057077886,-4175.96148375,0.00041684,120]
[313262585,1707057077908,-99892.09775689,0.00041684,30]
[313262586,1707057077931,-3000.0,0.00041684,30]
[313262587,1707057077954,-576.13848068,0.00041684,30]
[313262588,1707057077977,-500.0,0.00041684,120]
[313262589,1707057077999,-162.0,0.00041684,120]
[313262590,1707057078022,-1413.316762,0.00041684,30]
[313262591,1707057078044,-500.0,0.00041684,30]
[313262592,1707057078066,-832.673529,0.00041684,30]
[313262593,1707057078088,-399.802059,0.00041684,30]
[313262594,1707057083916,-850.0,0.00026,30]
[313262595,1707057083942,-247.999999,0.00029,30]
[313262596,1707057083973,-627.49,0.00033151,120]
[313262597,1707057084004,-6685.58224667,0.00036,30]
[313262598,1707057084027,-2449.71840763,0.00036301,30]
[313262599,1707057084059,-300.0,0.00038,39]
[313262600,1707057084083,-1499.999999,0.00038,39]
[313262601,1707057084106,-417.30541291,0.00038411,30]
[313262602,1707057084131,-300.0,0.00039,40]
[313262603,1707057084152,-164.49043128,0.00039,120]
[313262604,1707057084177,-2000.0,0.00039,60]
[313262605,1707057084202,-1000.0,0.00039441,30]
[313262606,1707057084226,-1886.223508,0.000397,40]
[313262607,1707057084249,-1000.0,0.000398,41]
[313262608,1707057084271,-1000.0,0.000399,41]
[313262609,1707057084294,-400.00047982,0.0004,120]
[313262610,1707057084317,-10000.0,0.0004,30]
[313262611,1707057084344,-300.0,0.0004,41]
[313262612,1707057084367,-746.0,0.0004,120]
[313262613,1707057084390,-8858.0,0.0004,30]
[313262614,1707057084413,-270.52814614,0.0004,30]
[313262615,1707057084436,-771.2621231,0.0004,120]
[313262616,1707057084460,-600.0,0.0004,41]
[313262617,1707057084490,-981.49175738,0.0004,30]
[313262618,1707057084516,-3479.20142981,0.0004,30]
[313262619,1707057084541,-14550.43619168,0.0004,30]
[313262620,1707057084566,-18370.09912994,0.0004,30]
[313262621,1707057084590,-5505.71196206,0.0004,30]
[313262622,1707057084614,-4179.83212524,0.0004,30]
[313262623,1707057084639,-4405.78934816,0.0004,30]
[313262624,1707057084664,-5273.09528086,0.0004,30]
[313262625,1707057084688,-5140.66,0.0004,30]
[313262626,1707057084712,-20547.73286192,0.0004,30]
[313262627,1707057084738,-2281.97975103,0.0004,30]
[313262628,1707057084763,-12887.12328634,0.0004,30]
[313262629,1707057084785,-10000.0,0.0004,30]
[313262630,1707057084808,-10000.0,0.0004,30]
[313262631,1707057084833,-10000.0,0.0004,30]
[313262632,1707057084856,-10000.0,0.0004,30]
[313262633,1707057084879,-10000.0,0.0004,30]
[313262634,1707057084902,-10000.0,0.0004,30]
[313262635,1707057084926,-10000.0,0.0004,30]
[313262636,1707057084949,-10000.0,0.0004,30]
[313262637,1707057084972,-10000.0,0.0004,30]
[313262638,1707057084995,-10000.0,0.0004,30]
[313262639,1707057085018,-11242.12016583,0.0004,30]
[313262640,1707057085041,-6075.87518687,0.0004,30]
[313262641,1707057085064,-10000.0,0.0004,30]
[313262642,1707057085086,-10000.0,0.0004,30]
[313262643,1707057085110,-10000.0,0.0004,30]
[313262644,1707057085133,-10000.0,0.0004,30]
[313262645,1707057085157,-10000.0,0.0004,30]
[313262646,1707057085179,-14391.61070637,0.0004,30]